Workbook

Sheet rent roll 10-25
B4: AS OF 10/2025
B5: Buckingham
B6: 2006-2024 Buckingham Rd, Garland TX 75042
C8: Suite | D8: Name | E8: SF | F8: % of SF | G8: Rent per SF | H8: Monthly Base Rent | I8: Taxes | J8: Ins | K8: Cam | L8: 3N for 2024 | M8: Monthly Gross | N8: Lease Start | O8: Payment start | P8: Lease End | Q8: Renewal Option | R8: Security Deposit | S8: Rate Change | T8: Rate Change 2
C9: 2006-2008 | D9: Washateria | E9: 4197 | F9: 33.02 | G9: 16.86 | H9: 5899 | I9: 953 | J9: 355 | K9: 793 | L9: 2292.213619 | M9: =SUM(H9,L9) -> 8191.213619 | N9: 2022-12-01 | O9: 2023-04-01 | P9: 2032-11-30 | Q9: 2x10 yr options | R9: n/a
C10: 2006-A | D10: D Tax Office | E10: 728 | F10: 5.73 | H10: 1800 | M10: 1600 | N10: 2024-01-01 | O10: 2024-03-01 | P10: 02/31/2026 | Q10: 1-3 yr option
C11: 2012 | D11: Juicy Fruteria | E11: 675 | F11: 5.31 | G11: 24 | H11: 1350 | I11: 153.3 | J11: 57.14 | K11: 127.49 | L11: 368.6547994 | M11: =SUM(H11,L11) -> 1718.654799 | N11: 2022-11-01 | O11: 2023-05-01 | P11: 2027-10-31 | R11: 3150 | S11: 11/1/25-$1,350.50
C12: 2014-2016 | D12: C-Store | E12: 2000 | F12: 15.74 | G12: 19 | H12: 3166.7 | I12: 454.42 | J12: 169.4 | K12: 377.91 | L12: 1092.310517 | M12: 4259.010517 | N12: 2022-12-01 | O12: 2022-12-01 | P12: 2027-11-30 | Q12: 5 yr option | R12: 3499.99 | S12: 12/1/24-$3,166.70
C13: 2018-2020 | D13: Holy Khao Thai Food | E13: 2000 | F13: 15.74 | G13: 15 | H13: 2832.01 | I13: 454.42 | J13: 169.4 | K13: 377.91 | L13: 1092.310517 | M13: 3924.320517 | N13: 2023-02-01 | O13: 2023-02-01 | P13: 2028-01-31 | Q13: 5yr | R13: n/a | S13: 2/1/25-$2,666 | T13: 2/1/27-$3,000
C14: 2022 | D14: Tortilleria | E14: 1000 | F14: 7.86 | G14: 21.5 | H14: 1791.66 | I14: 226.92 | J14: 84.59 | K14: 188.71 | L14: 546.1552583 | M14: 2337.815258 | N14: 2022-10-07 | O14: 2023-04-07 | P14: 2027-09-30 | Q14: 1 - 5yrs at market | R14: 4200 | S14: 10/7/2025-$1,791.66
C15: 2024A | D15: Barber Shop | E15: 1055 | F15: 8.3 | G15: 20 | H15: 1758.33 | I15: 240 | J15: 89 | K15: 199 | L15: 576.1937975 | M15: =SUM(H15,L15) -> 2334.523798 | N15: 2023-03-01 | O15: 2023-04-01 | P15: 2028-02-28 | Q15: 5yr | R15: 2286 | S15: 3/1/27-$1,934.16
C16: 2024B | D16: Austin Driving School | E16: 1055 | F16: 8.3 | G16: 18 | H16: 1582.5 | I16: 239.62 | J16: 89.32 | K16: 199.28 | L16: 576.1937975 | M16: =SUM(H16,L16) -> 2158.693798 | N16: 2023-02-01 | O16: 2023-02-01 | P16: 2026-01-31 | R16: 2100
D18: Total Leaseable SF | E18: 12710
D19: Total Vacant | E19: 0 | R19: =SUM(R11:R16) -> 15235.99
D20: Total leased SF | E20: 12710 | H20: =SUM(H9:H16) -> 20180.2 | I20: =SUM(I9:I16) -> 2721.68 | J20: =SUM(J9:J16) -> 1013.85 | K20: =SUM(K9:K16) -> 2263.3 | L20: =SUM(L9:L19) -> 6544.032305 | M20: =SUM(M9:M16) -> 26524.23231
D22: Annual | H22: =H20*12 -> 242162.4 | I22: =I20*12 -> 32660.16 | J22: 12166.2 | K22: 27159.6 | L22: =L20*12 -> 78528.38766 | M22: =M20*12 -> 318290.7877
D25: Property Tax | E25: 34644.99 | G25: for 2024 | J25: Property Tax | K25: 33196 | M25: for 2024
D26: Insurance | E26: 12915 | J26: Insurance | K26: 16933
D27: CAM | E27: 28812 | J27: CAM | K27: 24700
D28: Total 3N | E28: =SUM(E25:E27) -> 76371.99 | F28: $6.00 / sf/yr | J28: Total 3N | K28: =SUM(K25:K27) -> 74829 | L28: $5.88 / sf/yr
D32: CAM Detail | E32: Landscaping | F32: 3600 | J32: CAM Detail | K32: Landscaping | L32: 3000
E33: Electricity | F33: 1800 | K33: Electricity | L33: 1200
E34: Water Charges | K34: Water Charges
E35: Repair & Maintenance | F35: 6000 | K35: Repair & Maintenance | L35: 1000
E36: Sweeping Services | F36: 2400 | K36: Sweeping Services | L36: 1500
E37: Waste Removal | F37: 3600 | K37: Waste Removal | L37: 6000
E38: Mangement Fees | F38: 11412 | K38: Mangement Fees | L38: 12000
E39: Total CAM | F39: =SUM(F32:F38) -> 28812 | K39: Total CAM | L39: =SUM(L32:L38) -> 24700
C45: Rate Changes
E47: Effective Date | F47: Monthly Base | G47: Base rent/sf/yr
C48: 2006
C49: 2006 A | D49: Tax Office | E49: 2025-03-01 | F49: 1800
C50: 2012 | D50: Fruiteria | E50: 2025-11-01 | F50: 1350.5 | G50: 24
C52: 2014-2016 | D52: ABC C-Store | E52: 2024-12-01 | F52: 3166.7 | G52: 19
C54: 2018-2020 | D54: SBT Lao Thai | E54: 2025-02-01 | F54: 2832.01 | G54: 16 | H54: Sign Financing added | I54: 166.35
E55: 2027-02-01 | F55: 3000 | G55: 18
C57: 2022 | D57: Tortila | E57: 2025-10-07 | F57: 1791.66 | G57: 21.5
C59: 2024A | D59: Barber Shop | E59: 2027-03-01 | F59: 1934.16 | G59: 22
C61: 2024B | D61: Austin Driving School
